bitfinex/quotes_BTCUSD_20240717
["timestamp","ask_amount","ask_price","bid_price","bid_amount"]
[1721193356747,0.227051,65941.0,65936.0,0.00689917]
[1721193357172,0.222051,65941.0,65936.0,0.00689917]
[1721193357588,0.216051,65941.0,65936.0,0.00689917]
[1721193357793,0.0644,65941.0,65936.0,0.00689917]
[1721193358016,0.0644,65941.0,65935.0,0.001]
[1721193358017,0.454986,65936.0,65935.0,0.001]
[1721193358218,0.89821,65936.0,65935.0,0.002]
[1721193358412,0.594886,65936.0,65935.0,0.002]
[1721193359712,0.151665,65935.0,65930.0,0.151675]
[1721193360527,0.151668,65934.0,65928.0,0.151678]
[1721193361016,0.1399,65936.0,65925.0,0.07717479]
[1721193361224,0.1399,65936.0,65935.0,0.151664]
[1721193361576,0.1399,65936.0,65935.0,0.4618978]
[1721193366191,0.1399,65936.0,65935.0,0.4518978]
[1721193367710,0.1399,65936.0,65935.0,0.0069048]
[1721193367887,0.89821,65936.0,65935.0,0.0089048]
[1721193368063,0.89821,65936.0,65935.0,0.002924]
[1721193368270,0.89821,65936.0,65935.0,0.003924]
[1721193368814,0.594886,65936.0,65935.0,0.002924]
[1721193369168,0.594886,65936.0,65935.0,0.000924]
[1721193369591,0.594886,65936.0,65935.0,0.002924]
[1721193369918,0.89821,65936.0,65935.0,0.002924]
[1721193370148,0.89821,65936.0,65935.0,0.001924]
[1721193370149,0.90521,65936.0,65935.0,0.001924]
[1721193370444,1.36291574,65936.0,65935.0,0.001924]
[1721193370645,1.36291574,65936.0,65935.0,0.000924]
[1721193370646,1.35591574,65936.0,65935.0,0.000924]
[1721193370984,0.90521,65936.0,65935.0,0.001924]
[1721193371301,0.91221,65936.0,65935.0,0.002924]
[1721193372864,0.151677,65930.0,65924.0,0.14738297]
[1721193373033,0.15444997,65929.0,65924.0,0.14738297]
[1721193374136,0.00277097,65929.0,65924.0,0.14738297]
[1721193374315,0.00277097,65930.0,65927.0,0.151681]
[1721193374522,0.303344,65932.0,65924.0,0.001]
[1721193374744,0.00277097,65931.0,65926.0,0.303369]
[1721193374949,0.00277097,65935.0,65934.0,0.151666]
[1721193375154,0.228549,65942.0,65935.0,0.151663]
[1721193375155,0.217453,65940.0,65935.0,0.151663]
[1721193375503,0.00277097,65939.0,65935.0,0.151663]
[1721193376271,0.00277097,65939.0,65938.0,0.903587]
[1721193376477,0.0636,65956.0,65938.0,0.52560784]
[1721193376679,0.00277097,65955.0,65949.0,0.30326]
[1721193376856,0.00277097,65955.0,65951.0,0.151627]
[1721193377045,0.00277097,65955.0,65949.0,0.30326]
[1721193377046,0.0636,65956.0,65955.0,0.151618]
[1721193377248,0.0823,65959.0,65955.0,0.151618]
[1721193377449,0.0823,65959.0,65949.0,0.30326]
[1721193377727,0.0823,65959.0,65953.0,0.151622]
[1721193377728,0.004,65956.0,65953.0,0.151622]
[1721193377886,0.151612,65958.0,65953.0,0.151622]
[1721193378090,0.00277097,65957.0,65954.0,0.15162]
[1721193378264,0.002,65956.0,65954.0,0.15162]
[1721193378493,0.00277097,65955.0,65954.0,0.15162]
[1721193379049,0.002,65956.0,65955.0,0.151618]
[1721193379410,0.002,65956.0,65955.0,0.758092]
[1721193379635,0.0616,65964.0,65960.0,0.151604]
[1721193379881,0.00277097,65963.0,65960.0,0.151604]
[1721193380935,0.00277097,65963.0,65960.0,0.152604]
[1721193381112,0.00877097,65963.0,65960.0,0.153604]
[1721193382709,0.00877097,65963.0,65961.0,0.151604]
[1721193383291,0.01477097,65963.0,65961.0,0.151604]
[1721193383641,0.00877097,65963.0,65961.0,0.151604]
[1721193383993,0.00877097,65963.0,65961.0,0.152604]
[1721193384138,0.01477097,65963.0,65961.0,0.153604]
[1721193384341,0.01477097,65963.0,65962.0,0.75801]
[1721193384545,0.01477097,65963.0,65962.0,1.27669574]
[1721193384546,0.012,65963.0,65962.0,1.27669574]
[1721193385732,0.012,65963.0,65962.0,0.454806]
[1721193386118,0.006,65963.0,65962.0,0.454806]
[1721193386523,0.01712664,65966.0,65965.0,0.151595]
[1721193386763,0.01712664,65966.0,65965.0,0.454786]
[1721193387123,0.01712664,65966.0,65965.0,0.757977]
[1721193387338,0.01712664,65966.0,65965.0,1.28054974]
[1721193387937,0.01712664,65966.0,65965.0,1.36094974]
[1721193388261,0.01712664,65966.0,65965.0,1.77014074]
[1721193388262,0.01812664,65966.0,65965.0,1.77014074]
[1721193389387,0.01812664,65966.0,65965.0,1.77614074]
[1721193389607,0.01812664,65966.0,65965.0,1.77014074]
[1721193389829,0.01812664,65966.0,65965.0,1.77614074]
[1721193389830,0.01912664,65966.0,65965.0,1.77614074]
[1721193390201,0.01812664,65966.0,65965.0,1.77014074]
[1721193390608,0.01812664,65966.0,65965.0,1.77314074]
[1721193391188,0.01712664,65966.0,65965.0,1.76414074]
[1721193391793,0.01912664,65966.0,65965.0,1.78614074]
[1721193392360,0.02012664,65966.0,65965.0,1.79514074]
[1721193392697,0.01912664,65966.0,65965.0,1.78614074]
[1721193392904,0.01912664,65966.0,65965.0,1.46094974]
[1721193392905,0.01812664,65966.0,65965.0,1.46094974]
[1721193393104,0.01712664,65966.0,65965.0,1.46094974]
[1721193393304,0.01812664,65966.0,65965.0,0.866977]
[1721193393805,0.01712664,65966.0,65965.0,1.161168]
[1721193394137,0.01712664,65966.0,65965.0,0.866977]
[1721193394138,0.01812664,65966.0,65965.0,0.866977]
[1721193394542,0.01912664,65966.0,65965.0,0.877977]
[1721193394741,0.01812664,65966.0,65965.0,0.866977]
[1721193395176,0.01912664,65966.0,65965.0,0.877977]
[1721193395375,0.01812664,65966.0,65965.0,1.46884974]
[1721193396357,0.01912664,65966.0,65965.0,1.47784974]
[1721193404325,0.01912664,65966.0,65965.0,1.60371162]
[1721193404536,0.01912664,65966.0,65965.0,1.60371163]
[1721193405186,0.01912664,65966.0,65965.0,1.90690263]
[1721193406413,0.01912664,65966.0,65965.0,1.90688667]
[1721193406749,0.01912664,65966.0,65965.0,2.21007767]
[1721193407597,0.000501,65969.0,65968.0,1.564296]
[1721193407813,0.00837,65975.0,65974.0,0.704723]
[1721193408020,0.00837,65975.0,65974.0,1.74839967]
[1721193408218,0.00837,65975.0,65974.0,2.65784667]
[1721193408575,0.00837,65975.0,65974.0,2.30469767]
[1721193408962,0.00837,65975.0,65974.0,2.32277586]
[1721193409170,0.00837,65975.0,65974.0,2.37277586]
[1721193409555,0.00837,65975.0,65974.0,2.38377586]
[1721193409728,0.00837,65975.0,65974.0,2.33377586]
[1721193410314,0.00937,65975.0,65974.0,2.34277586]
[1721193410492,0.00937,65975.0,65974.0,2.3427696]
[1721193411253,0.00937,65975.0,65974.0,2.37469767]
[1721193412364,0.00937,65975.0,65974.0,2.32469767]
[1721193412759,0.00937,65975.0,65974.0,2.19885174]
[1721193412912,0.00937,65975.0,65974.0,1.55750029]
[1721193413112,0.00937,65975.0,65974.0,1.53942774]
[1721193414756,0.00937,65975.0,65974.0,1.15807874]
[1721193416309,0.00937,65975.0,65974.0,1.16563874]
[1721193418352,0.00937,65975.0,65974.0,1.17500874]
[1721193418944,0.07417,65975.0,65974.0,0.162755]
[1721193419160,0.07417,65975.0,65974.0,0.1534074]
[1721193419345,0.528887,65975.0,65974.0,0.02756]
[1721193423189,0.528887,65975.0,65974.0,0.03477421]
[1721193424378,0.832032,65975.0,65974.0,0.03477421]
[1721193424586,0.528887,65975.0,65974.0,0.03477421]
[1721193424789,0.528887,65975.0,65974.0,0.02756]
[1721193425552,0.527887,65975.0,65974.0,0.01856]
[1721193425890,0.532887,65975.0,65974.0,0.01856]
[1721193426604,0.532887,65975.0,65974.0,0.00756]
[1721193426797,0.836032,65975.0,65974.0,0.00756]
[1721193426942,0.533887,65975.0,65974.0,0.00756]
[1721193427139,0.527887,65975.0,65974.0,0.00756]
[1721193427390,0.532887,65975.0,65974.0,0.00756]
[1721193428279,0.537887,65975.0,65974.0,0.00756]
[1721193428455,0.841032,65975.0,65974.0,0.00756]
[1721193428866,0.537887,65975.0,65974.0,0.00756]
[1721193430296,0.841032,65975.0,65974.0,0.00756]
[1721193430492,1.223477,65975.0,65974.0,0.00756]
[1721193430715,0.920332,65975.0,65974.0,0.00756]
[1721193432750,1.223477,65975.0,65974.0,0.00756]
[1721193432930,0.920332,65975.0,65974.0,0.00756]
[1721193433294,1.37785874,65975.0,65974.0,0.00756]
[1721193433495,1.42785874,65975.0,65974.0,0.00756]
[1721193433739,1.64645874,65975.0,65974.0,0.00756]
[1721193433954,1.75523743,65975.0,65974.0,0.00756]
[1721193434297,1.99035703,65975.0,65974.0,0.00756]
[1721193434444,2.09872787,65975.0,65974.0,0.00756]
[1721193434639,2.07105077,65975.0,65974.0,0.00756]
[1721193434842,2.01362397,65975.0,65974.0,0.00856]
[1721193435047,1.99294748,65975.0,65974.0,0.00856]
[1721193435303,1.94760374,65975.0,65974.0,0.00856]
[1721193435476,1.98493825,65975.0,65974.0,0.00756]
[1721193435856,1.99793825,65975.0,65974.0,0.00856]
[1721193436266,1.98493825,65975.0,65974.0,0.00756]
[1721193436469,1.99593825,65975.0,65974.0,0.00856]
[1721193436639,2.00893825,65975.0,65974.0,0.00956]
[1721193436846,1.99793825,65975.0,65974.0,0.00856]
[1721193437045,2.01193825,65975.0,65974.0,0.00956]
[1721193437250,2.01192767,65975.0,65974.0,0.00956]
[1721193437654,2.03458964,65975.0,65974.0,0.00956]
[1721193438005,2.1207554,65975.0,65974.0,0.00956]
[1721193438809,2.00744556,65975.0,65974.0,0.00956]
[1721193439571,2.09804193,65975.0,65974.0,0.00956]
[1721193440163,2.00744556,65975.0,65974.0,0.00956]
[1721193440332,2.00694706,65975.0,65974.0,0.00956]
[1721193440496,2.24632287,65975.0,65974.0,0.00956]
[1721193440696,2.41009206,65975.0,65974.0,1e-06]
[1721193441599,2.39709206,65975.0,65974.0,1e-06]
[1721193441802,2.41009206,65975.0,65974.0,0.001001]
[1721193442008,1.717424,65970.0,65969.0,0.000924]
[1721193442228,2.09824906,65970.0,65969.0,0.000924]
[1721193442907,1.79508106,65970.0,65969.0,0.000924]
[1721193443108,1.78436263,65970.0,65969.0,0.001924]
[1721193443322,1.85224404,65970.0,65969.0,0.001924]
[1721193443527,1.85224373,65970.0,65969.0,0.001924]
[1721193443731,1.78436263,65970.0,65969.0,0.001924]
[1721193444379,1.79836263,65970.0,65969.0,0.001924]
[1721193444690,1.84359391,65970.0,65969.0,0.001924]
[1721193444861,1.83059391,65970.0,65969.0,0.000924]
[1721193445042,1.79936263,65970.0,65969.0,0.000924]
[1721193446697,1.80022217,65970.0,65969.0,0.000924]
[1721193449349,1.9782932,65970.0,65969.0,0.000924]
[1721193449605,1.95457174,65970.0,65969.0,0.000924]
[1721193449943,1.95461918,65970.0,65969.0,0.000924]
[1721193450341,1.82399102,65970.0,65969.0,0.000924]
[1721193452759,2.12715902,65970.0,65969.0,0.000924]
[1721193453211,2.12675686,65970.0,65969.0,0.000924]
[1721193456912,2.12718184,65970.0,65969.0,0.000924]
[1721193457118,1.553607,65953.0,65952.0,0.04917289]
[1721193457319,0.454965,65939.0,65938.0,0.1371]
[1721193457518,0.454965,65939.0,65938.0,0.19365946]
[1721193457923,0.454965,65939.0,65938.0,0.14448742]
[1721193458730,0.303277,65947.0,65938.0,0.14448742]
[1721193458976,0.151644,65944.0,65939.0,0.151654]
[1721193459143,0.151646,65943.0,65940.0,0.00737779]
[1721193459343,0.303301,65941.0,65938.0,0.1371]
[1721193459549,0.15438174,65947.0,65939.0,0.0073826]
[1721193459793,0.151649,65942.0,65939.0,0.0073826]
[1721193460367,0.151649,65942.0,65939.0,0.0072826]
[1721193461597,0.161649,65942.0,65939.0,0.0072826]
[1721193461952,0.161648,65942.0,65939.0,0.0072826]
[1721193462673,0.171648,65942.0,65939.0,0.0072826]
[1721193463297,0.151653,65940.0,65939.0,0.0072826]
[1721193465400,0.159653,65940.0,65939.0,0.0072826]
[1721193465647,0.166653,65940.0,65939.0,0.0072826]
[1721193468048,0.469959,65940.0,65939.0,0.0072826]
[1721193468281,0.469959,65940.0,65939.0,0.0082066]
[1721193469605,0.166653,65940.0,65939.0,0.0082066]
[1721193471473,0.015,65940.0,65939.0,0.0082066]
[1721193471681,0.015,65940.0,65939.0,0.6078716]
[1721193472761,0.007,65940.0,65939.0,0.6078716]
[1721193472965,0.007,65940.0,65939.0,0.6088716]
[1721193473325,0.151639,65946.0,65940.0,0.15165]
[1721193473526,0.151639,65946.0,65941.0,0.15753838]
[1721193474586,0.157639,65946.0,65941.0,0.15753838]
[1721193474787,0.164639,65946.0,65941.0,0.15753838]
[1721193474987,0.158639,65946.0,65941.0,0.15753838]
[1721193475187,0.151635,65948.0,65943.0,0.151645]
[1721193475558,0.30326,65950.0,65944.0,0.00587683]
[1721193475559,0.013,65946.0,65944.0,0.00587683]
[1721193476349,0.006,65946.0,65944.0,0.00587683]
[1721193476752,0.151637,65947.0,65944.0,0.00587683]
[1721193477862,0.006,65946.0,65944.0,0.00587683]
[1721193478283,0.151637,65947.0,65944.0,0.00587683]
[1721193478487,0.159637,65947.0,65944.0,0.00587683]
[1721193478689,0.015,65947.0,65944.0,0.00587683]
[1721193478891,0.015,65947.0,65944.0,0.15751983]
[1721193479873,0.015,65947.0,65946.0,0.231139]
[1721193480067,0.015,65947.0,65946.0,0.534417]
[1721193480293,0.015,65947.0,65946.0,0.90543141]
[1721193480884,0.008,65947.0,65946.0,0.90543141]
[1721193481285,0.151622,65954.0,65949.0,0.151631]
[1721193481713,0.151623,65953.0,65950.0,0.00731716]
[1721193483846,0.161623,65953.0,65950.0,0.00731716]
[1721193484839,0.171623,65953.0,65950.0,0.00691286]
[1721193485035,0.00277097,65952.0,65950.0,0.00691286]
[1721193485439,0.00277097,65952.0,65950.0,0.15854186]
[1721193485872,0.00277097,65952.0,65951.0,0.599282]
[1721193486084,0.02,65953.0,65952.0,0.454875]
[1721193486085,0.01,65953.0,65952.0,0.454875]
[1721193486288,0.01,65953.0,65952.0,1.205775]
[1721193486447,0.04544519,65968.0,65952.0,0.28753716]
[1721193486646,0.04544519,65973.0,65968.0,0.0627]
[1721193486847,0.00277097,65972.0,65970.0,0.151582]
[1721193487049,0.00361097,65974.0,65970.0,0.303165]
[1721193487266,0.00084,65974.0,65972.0,0.151578]
[1721193487469,0.00084,65974.0,65973.0,1.202139]
[1721193487781,0.00084,65974.0,65973.0,1.20867656]
[1721193488926,0.00084,65974.0,65973.0,1.21067656]
[1721193489991,0.01084,65974.0,65973.0,1.21067656]
[1721193490187,0.01084,65974.0,65973.0,0.90752256]
[1721193490414,0.01084,65974.0,65973.0,0.60436856]
[1721193490415,0.00084,65974.0,65973.0,0.60436856]
[1721193490787,0.00084,65974.0,65973.0,0.60636856]
[1721193491357,0.00084,65974.0,65973.0,0.30121456]
[1721193491630,0.00084,65974.0,65973.0,0.60236856]
[1721193491830,0.00284,65974.0,65973.0,0.60236856]
[1721193492433,0.00184,65974.0,65973.0,0.60236856]
[1721193492866,0.61094474,65974.0,65973.0,0.00653756]
[1721193493071,1.11309374,65974.0,65973.0,0.00653756]
[1721193493269,1.11309374,65974.0,65959.0,0.1248566]
[1721193493270,0.151588,65968.0,65962.0,0.1516]
[1721193493783,0.151588,65968.0,65963.0,0.00657603]
[1721193494334,0.151591,65967.0,65963.0,0.00657603]
[1721193494734,0.151591,65967.0,65962.0,0.003]
[1721193494937,0.454786,65965.0,65964.0,0.00657218]
[1721193495138,0.454786,65965.0,65963.0,0.00657603]
[1721193495139,0.454792,65964.0,65963.0,0.00657603]
[1721193495341,0.4548,65963.0,65962.0,0.004]
[1721193495540,0.15438174,65963.0,65952.0,0.0764]
[1721193495742,0.05,65964.0,65952.0,0.0764]
[1721193495743,0.303234,65956.0,65952.0,0.0764]
[1721193495943,0.151622,65954.0,65952.0,0.0764]
[1721193496374,0.151618,65956.0,65952.0,0.0764]
[1721193496776,0.15163,65950.0,65945.0,0.0784]
[1721193497014,0.15163,65950.0,65945.0,0.23004]
[1721193497213,0.151627,65952.0,65946.0,0.151639]
[1721193497503,0.30600074,65955.0,65949.0,0.151631]
[1721193497793,0.30600074,65955.0,65952.0,0.003]
[1721193497995,0.30600074,65955.0,65952.0,0.006]
[1721193498221,0.30600074,65955.0,65952.0,0.003]
[1721193498411,0.001,65952.0,65949.0,0.151631]
[1721193498872,0.001,65952.0,65949.0,0.002]
[1721193499552,0.001,65952.0,65946.0,0.003]
[1721193499764,0.1574213,65955.0,65945.0,0.0784]
[1721193499960,0.001,65952.0,65949.0,0.002]
[1721193500574,0.152625,65952.0,65950.0,0.00662607]
[1721193501154,0.151625,65952.0,65950.0,0.00662607]
[1721193501379,0.151625,65952.0,65948.0,0.151634]
[1721193501575,0.152625,65952.0,65949.0,0.00962992]
[1721193501815,0.153465,65952.0,65949.0,0.00962992]
[1721193502196,0.00184,65952.0,65949.0,0.16126092]
[1721193502396,0.00184,65952.0,65951.0,0.454882]
[1721193502621,0.00184,65952.0,65951.0,0.46150422]
[1721193502821,0.00284,65952.0,65951.0,0.46150422]
[1721193503025,0.00084,65952.0,65951.0,0.46150422]
[1721193503232,0.00184,65952.0,65951.0,0.15824922]
[1721193503807,0.00084,65952.0,65951.0,0.15824922]
[1721193504226,0.00084,65952.0,65951.0,0.16124922]
[1721193504227,0.00184,65952.0,65951.0,0.16124922]
[1721193504426,0.00284,65952.0,65951.0,0.16124922]
[1721193504855,0.00284,65952.0,65951.0,0.00962222]
[1721193505051,0.00384,65952.0,65951.0,0.01262222]
[1721193507219,0.00384,65952.0,65951.0,0.16424922]
[1721193508301,0.00384,65952.0,65951.0,0.60390422]
[1721193508497,0.00384,65952.0,65951.0,0.90715922]
[1721193508707,0.00384,65952.0,65951.0,1.66805096]
[1721193508905,0.00384,65952.0,65951.0,2.44105096]
[1721193509111,0.00384,65952.0,65951.0,2.56694115]
[1721193510015,0.00384,65952.0,65951.0,2.44105096]
[1721193510214,0.00384,65952.0,65951.0,2.56693312]
[1721193513281,0.00384,65952.0,65951.0,2.56693484]
[1721193513510,0.00384,65952.0,65951.0,3.02018984]
[1721193513736,0.00084,65974.0,65973.0,1.200039]
[1721193514106,0.00084,65974.0,65973.0,1.20678832]
[1721193515052,0.00084,65974.0,65973.0,1.20978832]
[1721193515668,0.00184,65974.0,65973.0,0.60648032]
[1721193516070,0.00184,65974.0,65973.0,0.90963432]
[1721193516272,0.00084,65974.0,65973.0,0.90363432]
[1721193516676,0.00084,65974.0,65973.0,0.90663432]
[1721193517148,0.00084,65974.0,65973.0,0.76463432]
[1721193517512,0.00084,65974.0,65973.0,0.76663432]
[1721193518363,0.00084,65974.0,65973.0,0.76963432]
[1721193518563,0.00084,65974.0,65973.0,0.46348032]
[1721193518819,0.00084,65974.0,65973.0,0.00874932]
[1721193518820,0.00387956,65974.0,65973.0,0.00874932]
[1721193518998,0.00084,65974.0,65973.0,0.16332632]
[1721193522085,0.00084,65974.0,65973.0,0.46648032]
[1721193523425,0.00084,65974.0,65973.0,0.76963432]
[1721193524012,0.00084,65974.0,65973.0,1.21498832]
[1721193524175,0.00084,65974.0,65973.0,1.34083825]
[1721193524365,0.00084,65974.0,65973.0,1.3408372]
[1721193525126,0.00084,65974.0,65973.0,0.5923292]
[1721193525308,0.00084,65974.0,65973.0,0.46648032]
[1721193525511,0.00084,65974.0,65973.0,0.76963432]
[1721193526839,0.00084,65974.0,65973.0,0.89548284]
[1721193529438,0.00084,65974.0,65973.0,1.19863541]
[1721193532580,0.00084,65974.0,65973.0,1.19863497]
[1721193535668,0.00084,65974.0,65973.0,1.07278832]
[1721193535875,0.00084,65974.0,65973.0,1.19863496]
[1721193538920,0.00084,65974.0,65973.0,1.07278832]
[1721193539111,0.00084,65974.0,65973.0,1.19864468]
[1721193541384,0.00084,65974.0,65973.0,1.19664186]
[1721193541583,0.00084,65974.0,65973.0,1.19764186]
[1721193541910,0.00084,65974.0,65973.0,1.19464186]
[1721193542066,0.00084,65974.0,65973.0,1.19564186]
[1721193542688,0.00084,65974.0,65973.0,0.28617986]
[1721193542940,0.00084,65974.0,65973.0,0.00874932]
[1721193543467,0.00084,65974.0,65973.0,0.002]
[1721193544014,0.00084,65974.0,65973.0,0.00909574]
[1721193544218,0.00084,65974.0,65973.0,0.00809574]
[1721193544825,0.00084,65974.0,65973.0,0.00709574]
[1721193545477,0.00277097,65973.0,65971.0,0.15158]
[1721193545791,0.00303956,65973.0,65970.0,0.151583]
[1721193545942,0.00303956,65973.0,65963.0,0.151598]
[1721193545943,0.00277097,65972.0,65963.0,0.151598]
[1721193546331,0.151588,65968.0,65962.0,0.303204]
[1721193546520,0.00303956,65971.0,65966.0,0.151591]
[1721193546521,0.151582,65971.0,65966.0,0.151591]
[1721193546719,0.00277097,65970.0,65966.0,0.151591]
[1721193547224,0.00277097,65970.0,65967.0,0.00711883]
[1721193547746,0.15435597,65970.0,65967.0,0.00711883]
[1721193547955,0.15435597,65970.0,65965.0,0.151593]
[1721193548115,0.15435597,65970.0,65968.0,0.00711498]
[1721193548300,0.15435597,65970.0,65965.0,0.151593]
[1721193548498,0.15435597,65970.0,65969.0,0.00711113]
[1721193548698,0.151585,65970.0,65967.0,0.004]
[1721193548902,0.00277097,65969.0,65967.0,0.004]
[1721193549109,0.00277097,65969.0,65952.0,0.52378071]
[1721193549110,0.00277097,65970.0,65969.0,0.454758]
[1721193549310,0.00084,65974.0,65973.0,0.454731]
[1721193549512,0.00084,65974.0,65973.0,0.757885]
[1721193550707,0.00084,65974.0,65973.0,0.454731]
[1721193550918,0.00084,65974.0,65973.0,0.757885]
[1721193553789,0.00084,65974.0,65973.0,0.894485]
[1721193554423,0.00084,65974.0,65973.0,0.833085]
[1721193554625,0.00084,65974.0,65973.0,0.454731]
[1721193555024,0.00084,65974.0,65973.0,0.455731]
[1721193555668,0.00084,65974.0,65973.0,0.454731]
[1721193555848,0.00084,65974.0,65973.0,0.456731]
[1721193556209,0.00084,65974.0,65973.0,0.455731]
[1721193556621,0.00084,65974.0,65973.0,0.456731]
[1721193556827,0.00084,65974.0,65973.0,0.759885]
[1721193556996,0.00084,65974.0,65973.0,0.456731]
[1721193557140,0.00084,65974.0,65973.0,0.759885]
[1721193557747,0.00084,65974.0,65973.0,0.758885]
[1721193558350,0.00084,65974.0,65973.0,0.759885]
[1721193559376,0.00084,65974.0,65973.0,0.840085]
[1721193559613,0.00084,65974.0,65973.0,1.143239]
[1721193560288,0.00084,65974.0,65973.0,0.840085]
[1721193560660,0.00084,65974.0,65973.0,0.903585]
[1721193560772,0.00084,65974.0,65973.0,1.206739]
[1721193563105,0.00084,65974.0,65973.0,1.33259675]
[1721193563657,0.00084,65974.0,65973.0,1.33259284]
[1721193563868,0.597463,65974.0,65973.0,0.002]
[1721193564108,1.35814274,65974.0,65973.0,0.002]
[1721193564269,1.05499374,65974.0,65973.0,0.002]
[1721193564853,1.05499374,65974.0,65973.0,0.001]
[1721193565054,0.75184474,65974.0,65973.0,0.001]
[1721193565518,0.151582,65971.0,65965.0,0.151595]
[1721193565690,0.15435497,65970.0,65965.0,0.151595]
[1721193566679,0.00277097,65970.0,65969.0,0.151586]
[1721193566915,0.15274,65974.0,65969.0,0.151586]
[1721193566916,0.00277097,65973.0,65969.0,0.151586]
[1721193567865,0.00277097,65973.0,65970.0,0.151582]
[1721193568229,0.00277097,65973.0,65971.0,0.151581]
[1721193568423,0.00277097,65973.0,65968.0,0.0627]
[1721193568424,0.00277097,65973.0,65972.0,0.151579]
[1721193568642,0.008,65973.0,65972.0,0.151579]
[1721193569036,0.008,65973.0,65972.0,0.454737]
[1721193570142,0.00084,65974.0,65973.0,0.151577]
[1721193570745,0.00084,65974.0,65973.0,0.454731]
[1721193571972,0.00984,65974.0,65973.0,0.001]
[1721193572376,0.01984,65974.0,65973.0,0.002]
[1721193572528,0.16074,65974.0,65973.0,0.002]
[1721193573755,0.08314,65974.0,65973.0,0.002]
[1721193574772,0.01984,65974.0,65973.0,0.153577]
[1721193574975,0.01984,65974.0,65973.0,0.456731]
[1721193575198,0.01984,65974.0,65973.0,0.759885]
[1721193575405,0.01984,65974.0,65973.0,1.063039]
[1721193576753,0.00984,65974.0,65973.0,1.061039]
[1721193576945,0.00084,65974.0,65973.0,1.061039]
[1721193577244,0.00584,65974.0,65973.0,1.061039]
[1721193578931,0.00584,65974.0,65973.0,1.18689869]
[1721193579536,0.00584,65974.0,65973.0,1.061039]
[1721193579756,0.00584,65974.0,65973.0,1.18689818]
[1721193581482,0.00284,65974.0,65973.0,1.18689818]
[1721193581697,0.00084,65974.0,65973.0,1.18689818]
[1721193582124,0.00084,65974.0,65973.0,1.18889818]
[1721193582264,0.00084,65974.0,65973.0,1.19089818]
[1721193582939,0.00084,65974.0,65973.0,1.19089816]
[1721193583217,0.00084,65974.0,65973.0,1.18889816]
[1721193583417,0.00184,65974.0,65973.0,1.19289816]
[1721193583724,0.00284,65974.0,65973.0,1.19889816]
[1721193584435,0.00284,65974.0,65973.0,1.1988981]
[1721193584646,0.00284,65974.0,65973.0,1.19889663]
[1721193584842,0.00284,65974.0,65973.0,1.073039]
[1721193585405,0.00284,65974.0,65973.0,1.19889741]
[1721193585790,0.00184,65974.0,65973.0,1.19289741]
[1721193587019,0.00284,65974.0,65973.0,1.19889741]
[1721193589324,0.00284,65974.0,65973.0,1.19889648]
[1721193593026,0.00284,65974.0,65973.0,1.073039]
[1721193593441,0.00284,65974.0,65973.0,1.19889695]
[1721193593851,0.00284,65974.0,65973.0,1.073039]
[1721193594613,0.00284,65974.0,65973.0,1.212739]
[1721193594952,0.00284,65974.0,65973.0,1.64175095]
[1721193595166,0.00284,65974.0,65973.0,2.29928669]
[1721193595363,0.00284,65974.0,65973.0,2.61788669]
[1721193595770,0.00284,65974.0,65973.0,2.39926643]
[1721193595924,0.00084,65974.0,65973.0,2.38726643]
[1721193596328,0.00284,65974.0,65973.0,1.89611243]
[1721193596536,0.00284,65974.0,65973.0,2.09011243]
[1721193596745,0.00284,65974.0,65973.0,2.08411243]
[1721193596967,0.00184,65974.0,65973.0,2.08411243]
[1721193597144,0.00284,65974.0,65973.0,2.09611243]
[1721193597731,0.00184,65974.0,65973.0,2.38726643]
[1721193598687,0.00184,65974.0,65973.0,2.39926643]
[1721193598887,0.00184,65974.0,65973.0,2.27342874]
[1721193599041,0.00184,65974.0,65973.0,2.40926373]
[1721193599684,0.00184,65974.0,65973.0,2.39926373]
[1721193599885,0.00184,65974.0,65973.0,2.10710973]
[1721193601316,0.00184,65974.0,65973.0,1.98127474]
[1721193601515,0.00184,65974.0,65973.0,2.10710973]
[1721193601675,0.00184,65974.0,65973.0,1.98127474]
[1721193601879,0.00184,65974.0,65973.0,2.10710973]
[1721193605158,0.00184,65974.0,65973.0,2.11547973]
[1721193606344,0.00184,65974.0,65973.0,2.41863373]
[1721193606863,0.00184,65974.0,65973.0,2.65738622]
[1721193607021,0.00184,65974.0,65973.0,2.94496384]
[1721193607221,0.00837,65975.0,65974.0,1.41417]
[1721193607424,0.00837,65975.0,65974.0,3.93579278]
[1721193607624,0.00837,65975.0,65974.0,3.80173382]
[1721193607820,0.00837,65975.0,65974.0,4.5195556]
[1721193608314,0.00837,65975.0,65974.0,4.02632644]
[1721193608533,0.00837,65975.0,65974.0,3.9589928]
[1721193609343,0.00837,65975.0,65974.0,3.94746751]
[1721193609696,0.00937,65975.0,65974.0,3.96146751]
[1721193610098,0.00937,65975.0,65974.0,3.97546751]
[1721193610971,0.00937,65975.0,65974.0,3.97546969]
[1721193611262,0.00937,65975.0,65974.0,3.97546964]
[1721193611458,0.00937,65975.0,65974.0,3.67232064]
[1721193611693,0.00937,65975.0,65974.0,3.42472459]
[1721193611885,0.00837,65975.0,65974.0,3.42472459]
[1721193612090,0.00937,65975.0,65974.0,3.62744436]
[1721193612289,0.00937,65975.0,65974.0,3.38872459]
[1721193613052,0.00937,65975.0,65974.0,3.43872459]
[1721193613485,0.00937,65975.0,65974.0,3.42472459]
[1721193613896,0.00937,65975.0,65974.0,3.50189938]
[1721193614067,0.00937,65975.0,65974.0,3.42472679]
[1721193616390,0.00937,65975.0,65974.0,3.57472679]
[1721193617014,0.00937,65975.0,65974.0,3.62472679]
[1721193617984,0.00937,65975.0,65974.0,3.37472679]
[1721193618157,0.00937,65975.0,65974.0,3.62472679]
[1721193618571,0.00937,65975.0,65974.0,3.27157779]
[1721193619114,0.00937,65975.0,65974.0,3.57472679]
[1721193619536,0.00937,65975.0,65974.0,3.27157779]
[1721193619730,0.00937,65975.0,65974.0,3.57472679]